[Event "Late-Titled-Tuesday-Blitz-June-04-2024"]
[Site "Chess.com"]
[Date "2024.06.04"]
[Round "1"]
[White "rezamahdavi2008"]
[Black "dimitrisl"]
[Result "1-0"]
[WhiteElo "2929"]
[BlackElo "2500"]
[TimeControl "180+1"]
[EndTime "14:06:06 PDT"]
[Termination "rezamahdavi2008 won by checkmate"]

1. b3 {[%clk 0:03:00.9]} 1... Nf6 {[%clk 0:02:57.1]} 2. Bb2 {[%clk 0:03:00.9]}
2... e6 {[%clk 0:02:57.8]} 3. Nf3 {[%clk 0:03:00.1]} 3... d5 {[%clk 0:02:58.3]}
4. e3 {[%clk 0:02:59.5]} 4... Be7 {[%clk 0:02:58.9]} 5. c4 {[%clk 0:02:58.2]}
5... O-O {[%clk 0:02:58.5]} 6. Nc3 {[%clk 0:02:54.4]} 6... b6 {[%clk 0:02:58.7]}
7. cxd5 {[%clk 0:02:50.5]} 7... Nxd5 {[%clk 0:02:52.4]} 8. Nxd5 {[%clk
0:02:50.4]} 8... Qxd5 {[%clk 0:02:51.5]} 9. Qc2 {[%clk 0:02:49.2]} 9... Qc5
{[%clk 0:02:28.5]} 10. Qe4 {[%clk 0:02:24.7]} 10... Qd5 {[%clk 0:02:06.2]} 11.
Bd3 {[%clk 0:02:15.5]} 11... Qxe4 {[%clk 0:02:02.7]} 12. Bxe4 {[%clk 0:02:16.4]}
12... c6 {[%clk 0:02:03.1]} 13. Rc1 {[%clk 0:02:15]} 13... Bb7 {[%clk
0:02:02.4]} 14. Ne5 {[%clk 0:02:14]} 14... Rc8 {[%clk 0:02:00.8]} 15. d4 {[%clk
0:02:13.3]} 15... f6 {[%clk 0:01:42.6]} 16. Nd3 {[%clk 0:02:13.6]} 16... Nd7
{[%clk 0:01:34.5]} 17. Kd2 {[%clk 0:02:01.3]} 17... Rc7 {[%clk 0:01:33.2]} 18.
Rc2 {[%clk 0:02:01.5]} 18... Rac8 {[%clk 0:01:33.3]} 19. Rhc1 {[%clk 0:02:02.2]}
19... Kf7 {[%clk 0:01:23.7]} 20. Nf4 {[%clk 0:01:55.9]} 20... g6 {[%clk
0:01:07.3]} 21. Nd3 {[%clk 0:01:53.3]} 21... Bd6 {[%clk 0:00:38]} 22. b4 {[%clk
0:01:52.6]} 22... a6 {[%clk 0:00:34.1]} 23. a4 {[%clk 0:01:52.5]} 23... b5
{[%clk 0:00:25.7]} 24. a5 {[%clk 0:01:44.1]} 24... Nb8 {[%clk 0:00:20.6]} 25.
Nc5 {[%clk 0:01:42.9]} 25... Bxc5 {[%clk 0:00:20.7]} 26. Rxc5 {[%clk 0:01:43.8]}
26... Rd7 {[%clk 0:00:19.8]} 27. Ke2 {[%clk 0:01:43.7]} 27... Rd6 {[%clk
0:00:18.2]} 28. g4 {[%clk 0:01:43]} 28... Rcd8 {[%clk 0:00:16.1]} 29. h4 {[%clk
0:01:43.2]} 29... h6 {[%clk 0:00:15.7]} 30. f4 {[%clk 0:01:42.3]} 30... Kg7
{[%clk 0:00:13.4]} 31. h5 {[%clk 0:01:42.6]} 31... g5 {[%clk 0:00:13.2]} 32.
fxg5 {[%clk 0:01:43.4]} 32... fxg5 {[%clk 0:00:13.1]} 33. Rf1 {[%clk 0:01:43.4]}
33... Rf8 {[%clk 0:00:13.3]} 34. Rxf8 {[%clk 0:01:43.8]} 34... Kxf8 {[%clk
0:00:14.2]} 35. Rc1 {[%clk 0:01:44.5]} 35... Rd7 {[%clk 0:00:13.4]} 36. Bg6
{[%clk 0:01:45.2]} 36... Kg8 {[%clk 0:00:11.3]} 37. Rf1 {[%clk 0:01:45.6]} 37...
Re7 {[%clk 0:00:11.4]} 38. Kd3 {[%clk 0:01:42.9]} 38... Nd7 {[%clk 0:00:11.7]}
39. e4 {[%clk 0:01:43.5]} 39... Nf8 {[%clk 0:00:11]} 40. Rf6 {[%clk 0:01:41.7]}
40... Nxg6 {[%clk 0:00:10.7]} 41. Rxg6+ {[%clk 0:01:42.6]} 41... Kh7 {[%clk
0:00:11.3]} 42. Rf6 {[%clk 0:01:41.1]} 42... Bc8 {[%clk 0:00:10.1]} 43. Rf8
{[%clk 0:01:39.8]} 43... Rc7 {[%clk 0:00:10.4]} 44. d5 {[%clk 0:01:40.1]} 44...
cxd5 {[%clk 0:00:10]} 45. Rh8# {[%clk 0:01:40.3]} 1-0

[Event "Late-Titled-Tuesday-Blitz-June-04-2024"]
[Site "Chess.com"]
[Date "2024.06.04"]
[Round "1"]
[White "CixPer1968"]
[Black "zacachess"]
[Result "0-1"]
[WhiteElo "2154"]
[BlackElo "2549"]
[TimeControl "180+1"]
[EndTime "14:06:07 PDT"]
[Termination "zacachess won on time"]

1. d4 {[%clk 0:02:53.6]} 1... Nf6 {[%clk 0:02:59.8]} 2. c4 {[%clk 0:02:52.4]}
2... e6 {[%clk 0:03:00.2]} 3. Nc3 {[%clk 0:02:51.5]} 3... Bb4 {[%clk 0:03:00.6]}
4. Qc2 {[%clk 0:02:50.6]} 4... O-O {[%clk 0:03:00.4]} 5. a3 {[%clk 0:02:38.1]}
5... Bxc3+ {[%clk 0:03:00.2]} 6. Qxc3 {[%clk 0:02:37.4]} 6... b6 {[%clk
0:02:59.2]} 7. Nf3 {[%clk 0:02:35.8]} 7... Bb7 {[%clk 0:02:58.9]} 8. Bd2 {[%clk
0:02:31.4]} 8... d6 {[%clk 0:02:55.9]} 9. g3 {[%clk 0:02:30.2]} 9... Nbd7 {[%clk
0:02:54.5]} 10. Bg2 {[%clk 0:02:29.5]} 10... c5 {[%clk 0:02:54.4]} 11. O-O
{[%clk 0:02:27.5]} 11... Rc8 {[%clk 0:02:54.6]} 12. b3 {[%clk 0:02:23.8]} 12...
d5 {[%clk 0:02:35.6]} 13. dxc5 {[%clk 0:02:12.1]} 13... Nxc5 {[%clk 0:02:30.9]}
14. Bg5 {[%clk 0:02:04.9]} 14... Nfe4 {[%clk 0:02:21.4]} 15. Bxd8 {[%clk
0:01:45.9]} 15... Nxc3 {[%clk 0:02:21]} 16. Be7 {[%clk 0:01:04.6]} 16... Nxb3
{[%clk 0:02:07.8]} 17. Bxf8 {[%clk 0:00:59.7]} 17... Nxa1 {[%clk 0:02:05.3]} 18.
Bb4 {[%clk 0:00:36]} 18... Nxe2+ {[%clk 0:02:03.9]} 19. Kh1 {[%clk 0:00:35.4]}
19... Nc2 {[%clk 0:02:04.2]} 20. Bd2 {[%clk 0:00:30.7]} 20... Rxc4 {[%clk
0:01:53.5]} 21. Ne5 {[%clk 0:00:29.6]} 21... Rc8 {[%clk 0:01:42.5]} 22. Bf3
{[%clk 0:00:28.2]} 22... Ned4 {[%clk 0:01:40.7]} 23. Bd1 {[%clk 0:00:26.4]}
23... Nxa3 {[%clk 0:01:37]} 24. Re1 {[%clk 0:00:15.1]} 24... Nc4 {[%clk
0:01:27.8]} 25. Nd3 {[%clk 0:00:13.1]} 25... b5 {[%clk 0:01:17.4]} 26. Bc3
{[%clk 0:00:11.4]} 26... Nf5 {[%clk 0:01:12.8]} 27. Bf3 {[%clk 0:00:05]} 27...
a5 {[%clk 0:01:09.9]} 28. Rb1 {[%clk 0:00:03.1]} 28... b4 {[%clk 0:01:09.4]} 0-1

[Event "Late-Titled-Tuesday-Blitz-June-04-2024"]
[Site "Chess.com"]
[Date "2024.06.04"]
[Round "1"]
[White "xasid81"]
[Black "teresin05"]
[Result "1-0"]
[WhiteElo "2632"]
[BlackElo "2328"]
[TimeControl "180+1"]
[EndTime "14:06:12 PDT"]
[Termination "xasid81 won on time"]

1. e4 {[%clk 0:02:56.6]} 1... c5 {[%clk 0:00:53]} 2. Nf3 {[%clk 0:02:54.9]} 2...
Nc6 {[%clk 0:00:52.8]} 3. Bb5 {[%clk 0:02:54.5]} 3... e6 {[%clk 0:00:52.6]} 4.
Bxc6 {[%clk 0:02:54.9]} 4... bxc6 {[%clk 0:00:52.2]} 5. O-O {[%clk 0:02:55.8]}
5... Ne7 {[%clk 0:00:52.3]} 6. d3 {[%clk 0:02:56.6]} 6... d6 {[%clk 0:00:51.7]}
7. b3 {[%clk 0:02:57.1]} 7... Ng6 {[%clk 0:00:50.8]} 8. Bb2 {[%clk 0:02:57.6]}
8... e5 {[%clk 0:00:50.9]} 9. c3 {[%clk 0:02:58]} 9... Be7 {[%clk 0:00:50.8]}
10. d4 {[%clk 0:02:58.5]} 10... cxd4 {[%clk 0:00:50.7]} 11. cxd4 {[%clk
0:02:59.4]} 11... Qc7 {[%clk 0:00:44]} 12. dxe5 {[%clk 0:02:59.3]} 12... dxe5
{[%clk 0:00:43.8]} 13. h3 {[%clk 0:02:59.7]} 13... O-O {[%clk 0:00:43.6]} 14.
Nbd2 {[%clk 0:02:59.4]} 14... Be6 {[%clk 0:00:43]} 15. Nc4 {[%clk 0:02:58.8]}
15... f6 {[%clk 0:00:42]} 16. Qc2 {[%clk 0:02:57.9]} 16... Nf4 {[%clk
0:00:40.8]} 17. Bc1 {[%clk 0:02:46.2]} 17... Rad8 {[%clk 0:00:37.8]} 18. Bxf4
{[%clk 0:02:45.9]} 18... exf4 {[%clk 0:00:38.7]} 19. Rfd1 {[%clk 0:02:44.6]}
19... f5 {[%clk 0:00:34.5]} 20. Rxd8 {[%clk 0:02:42.2]} 20... Bxd8 {[%clk
0:00:31]} 21. e5 {[%clk 0:02:39.8]} 21... Bd5 {[%clk 0:00:31.1]} 22. Qe2 {[%clk
0:02:37.1]} 22... Qf7 {[%clk 0:00:24.3]} 23. e6 {[%clk 0:02:24.4]} 23... Qxe6
{[%clk 0:00:22.3]} 24. Qxe6+ {[%clk 0:02:23.6]} 24... Bxe6 {[%clk 0:00:23.2]}
25. Nd4 {[%clk 0:02:23.2]} 25... Bd7 {[%clk 0:00:22.8]} 26. Ne5 {[%clk
0:02:22.9]} 26... Bf6 {[%clk 0:00:20.5]} 27. Nxd7 {[%clk 0:02:18.8]} 27... Bxd4
{[%clk 0:00:20.9]} 28. Rd1 {[%clk 0:02:19.3]} 28... c5 {[%clk 0:00:19.6]} 29.
Nxf8 {[%clk 0:02:18.1]} 29... Kxf8 {[%clk 0:00:20.5]} 30. Kf1 {[%clk 0:02:15.6]}
30... Ke7 {[%clk 0:00:20.5]} 31. Ke2 {[%clk 0:02:15.2]} 31... g5 {[%clk
0:00:19.4]} 32. f3 {[%clk 0:02:15.2]} 32... Ke6 {[%clk 0:00:19.2]} 33. Kd3
{[%clk 0:02:14.7]} 33... Kd5 {[%clk 0:00:19.3]} 34. Re1 {[%clk 0:02:14.3]} 34...
Be3 {[%clk 0:00:19.1]} 35. Re2 {[%clk 0:02:14.6]} 35... h5 {[%clk 0:00:18.8]}
36. Rc2 {[%clk 0:02:14.3]} 36... g4 {[%clk 0:00:18.5]} 37. Rc4 {[%clk
0:02:13.7]} 37... Ke5 {[%clk 0:00:14.8]} 38. Ra4 {[%clk 0:02:11]} 38... Kd5
{[%clk 0:00:15.2]} 39. Ra6 {[%clk 0:02:06.9]} 39... Ke5 {[%clk 0:00:14.8]} 40.
Ra3 {[%clk 0:02:00.6]} 40... Bf2 {[%clk 0:00:14.9]} 41. Kc4 {[%clk 0:01:55.4]}
41... h4 {[%clk 0:00:10.6]} 42. Rxa7 {[%clk 0:01:53.7]} 42... Bd4 {[%clk
0:00:05.6]} 43. Re7+ {[%clk 0:01:52.1]} 43... Kf6 {[%clk 0:00:05.4]} 44. Re2
{[%clk 0:01:53]} 44... Be3 {[%clk 0:00:02.8]} 45. Rc2 {[%clk 0:01:52.5]} 45...
Ke5 {[%clk 0:00:02.6]} 46. a4 {[%clk 0:01:51.2]} 46... Kd6 {[%clk 0:00:02.7]}
47. Rc3 {[%clk 0:01:45.2]} 47... Kc6 {[%clk 0:00:02.7]} 48. Rd3 {[%clk
0:01:45.4]} 48... g3 {[%clk 0:00:01.2]} 49. Rd5 {[%clk 0:01:44.7]} 1-0

[Event "Late-Titled-Tuesday-Blitz-June-04-2024"]
[Site "Chess.com"]
[Date "2024.06.04"]
[Round "1"]
[White "DeTimmerman"]
[Black "Chessdemon2019"]
[Result "1-0"]
[WhiteElo "2764"]
[BlackElo "2427"]
[TimeControl "180+1"]
[EndTime "14:06:15 PDT"]
[Termination "DeTimmerman won by resignation"]

1. b4 {[%clk 0:02:59.6]} 1... d5 {[%clk 0:02:55.1]} 2. Bb2 {[%clk 0:02:59.6]}
2... Qd6 {[%clk 0:02:54.8]} 3. a3 {[%clk 0:02:59.4]} 3... e5 {[%clk 0:02:55.1]}
4. e3 {[%clk 0:02:59.4]} 4... c6 {[%clk 0:02:44.8]} 5. c4 {[%clk 0:02:59.1]}
5... Be6 {[%clk 0:02:39.4]} 6. cxd5 {[%clk 0:02:58.9]} 6... cxd5 {[%clk
0:02:39]} 7. Nf3 {[%clk 0:02:59.3]} 7... Nd7 {[%clk 0:02:37.9]} 8. Be2 {[%clk
0:02:59.6]} 8... Ne7 {[%clk 0:02:24.6]} 9. O-O {[%clk 0:02:58.8]} 9... Ng6
{[%clk 0:02:24.5]} 10. Nc3 {[%clk 0:02:53.4]} 10... a6 {[%clk 0:02:20.8]} 11. d4
{[%clk 0:02:43.7]} 11... e4 {[%clk 0:02:20.7]} 12. Nd2 {[%clk 0:02:44.2]} 12...
Be7 {[%clk 0:02:17.2]} 13. b5 {[%clk 0:02:37.7]} 13... O-O {[%clk 0:02:15.4]}
14. a4 {[%clk 0:02:37.2]} 14... Qc7 {[%clk 0:02:08.4]} 15. Rc1 {[%clk 0:02:36]}
15... Qb6 {[%clk 0:02:01.2]} 16. Qb3 {[%clk 0:02:32.5]} 16... Rfc8 {[%clk
0:01:45]} 17. Nxd5 {[%clk 0:02:26.4]} 17... Bxd5 {[%clk 0:01:39.8]} 18. Qxd5
{[%clk 0:02:25.7]} 18... Nf6 {[%clk 0:01:37.7]} 19. Qb3 {[%clk 0:02:24.7]} 19...
axb5 {[%clk 0:01:30.5]} 20. Bxb5 {[%clk 0:02:18.6]} 20... Nh4 {[%clk 0:01:01.7]}
21. Bc4 {[%clk 0:02:10.6]} 21... Qxb3 {[%clk 0:00:49.3]} 22. Bxb3 {[%clk
0:02:11.5]} 22... Bb4 {[%clk 0:00:41]} 23. Nc4 {[%clk 0:02:09.8]} 23... Nf5
{[%clk 0:00:40.4]} 24. Ne5 {[%clk 0:02:07.3]} 24... Nd6 {[%clk 0:00:39.2]} 25.
Rxc8+ {[%clk 0:02:00.4]} 25... Rxc8 {[%clk 0:00:39.1]} 26. Rc1 {[%clk
0:02:01.3]} 26... Rxc1+ {[%clk 0:00:35.9]} 27. Bxc1 {[%clk 0:02:02.2]} 27... Kf8
{[%clk 0:00:35.4]} 28. f3 {[%clk 0:01:51.4]} 28... Ke7 {[%clk 0:00:20.3]} 29.
Kf2 {[%clk 0:01:51.2]} 29... Nfe8 {[%clk 0:00:18.3]} 30. Ke2 {[%clk 0:01:44.1]}
30... f6 {[%clk 0:00:18.1]} 31. Nc4 {[%clk 0:01:44.7]} 31... Nxc4 {[%clk
0:00:17.5]} 32. Bxc4 {[%clk 0:01:45.6]} 32... Nd6 {[%clk 0:00:18]} 33. Bd5
{[%clk 0:01:46.1]} 33... exf3+ {[%clk 0:00:17.5]} 34. gxf3 {[%clk 0:01:46.7]}
34... b5 {[%clk 0:00:16.5]} 35. axb5 {[%clk 0:01:45.8]} 35... Nxb5 {[%clk
0:00:16.9]} 36. Kd3 {[%clk 0:01:46.3]} 36... Nd6 {[%clk 0:00:17.1]} 37. e4
{[%clk 0:01:46.2]} 37... Ba5 {[%clk 0:00:15.7]} 38. Ba3 {[%clk 0:01:45.7]} 38...
Kd7 {[%clk 0:00:15.7]} 39. Bg8 {[%clk 0:01:44.1]} 39... h6 {[%clk 0:00:15.5]}
40. Bh7 {[%clk 0:01:44.2]} 40... Bc7 {[%clk 0:00:14.9]} 41. h4 {[%clk
0:01:43.4]} 41... Ke8 {[%clk 0:00:08.5]} 42. h5 {[%clk 0:01:43.5]} 42... Nc8
{[%clk 0:00:08.3]} 43. Bg6+ {[%clk 0:01:42.9]} 43... Kd7 {[%clk 0:00:07.6]} 44.
Bf8 {[%clk 0:01:43.5]} 44... Ne7 {[%clk 0:00:05.5]} 45. Bxg7 {[%clk 0:01:43.9]}
45... f5 {[%clk 0:00:03.7]} 46. Bxh6 {[%clk 0:01:42.8]} 46... fxe4+ {[%clk
0:00:03.5]} 47. fxe4 {[%clk 0:01:43.7]} 47... Ke6 {[%clk 0:00:03.8]} 48. Ke3
{[%clk 0:01:39.7]} 48... Kf6 {[%clk 0:00:04.1]} 49. e5+ {[%clk 0:01:39.9]} 49...
Ke6 {[%clk 0:00:04.2]} 50. Ke4 {[%clk 0:01:40]} 50... Nd5 {[%clk 0:00:04.7]} 51.
Bf5+ {[%clk 0:01:40]} 1-0

[Event "Late-Titled-Tuesday-Blitz-June-04-2024"]
[Site "Chess.com"]
[Date "2024.06.04"]
[Round "1"]
[White "duone"]
[Black "enestnrvrd"]
[Result "1-0"]
[WhiteElo "2373"]
[BlackElo "2656"]
[TimeControl "180+1"]
[EndTime "14:06:20 PDT"]
[Termination "duone won on time"]

1. e4 {[%clk 0:02:59.2]} 1... c5 {[%clk 0:02:54.5]} 2. Nf3 {[%clk 0:02:59.2]}
2... d6 {[%clk 0:02:45.6]} 3. c3 {[%clk 0:02:59.2]} 3... Nf6 {[%clk 0:02:38.9]}
4. Be2 {[%clk 0:02:57.2]} 4... g6 {[%clk 0:02:33.5]} 5. O-O {[%clk 0:02:56.3]}
5... Bg7 {[%clk 0:02:34.1]} 6. Re1 {[%clk 0:02:56.2]} 6... O-O {[%clk
0:02:34.2]} 7. Bf1 {[%clk 0:02:55.4]} 7... Bg4 {[%clk 0:02:30]} 8. h3 {[%clk
0:02:54.5]} 8... Bxf3 {[%clk 0:02:29.9]} 9. Qxf3 {[%clk 0:02:55.2]} 9... Nc6
{[%clk 0:02:30.8]} 10. Qd1 {[%clk 0:02:50.3]} 10... Nd7 {[%clk 0:02:14.4]} 11.
d3 {[%clk 0:02:50.2]} 11... b5 {[%clk 0:02:13.6]} 12. Be3 {[%clk 0:02:49.9]}
12... b4 {[%clk 0:02:11.4]} 13. d4 {[%clk 0:02:47]} 13... bxc3 {[%clk
0:02:10.2]} 14. bxc3 {[%clk 0:02:47]} 14... cxd4 {[%clk 0:01:07]} 15. cxd4
{[%clk 0:02:45.9]} 15... Rb8 {[%clk 0:01:04.6]} 16. Nc3 {[%clk 0:02:35.7]} 16...
Rb4 {[%clk 0:00:44.6]} 17. Nd5 {[%clk 0:02:34.9]} 17... Rxd4 {[%clk 0:00:44.3]}
18. Bxd4 {[%clk 0:02:34.3]} 18... Nxd4 {[%clk 0:00:44.7]} 19. Rc1 {[%clk
0:02:31.8]} 19... e6 {[%clk 0:00:44.2]} 20. Ne3 {[%clk 0:02:29.6]} 20... Qg5
{[%clk 0:00:32.1]} 21. Rc4 {[%clk 0:02:24.8]} 21... e5 {[%clk 0:00:20.1]} 22.
Nd5 {[%clk 0:02:19.8]} 22... f5 {[%clk 0:00:18.1]} 23. Rc7 {[%clk 0:02:15.8]}
23... Nf6 {[%clk 0:00:17.7]} 24. Bc4 {[%clk 0:02:11.2]} 24... Kh8 {[%clk
0:00:16.1]} 25. Nxf6 {[%clk 0:02:10.2]} 25... Qxf6 {[%clk 0:00:15.6]} 26. Rf1
{[%clk 0:01:52.7]} 26... fxe4 {[%clk 0:00:09.9]} 27. Bd5 {[%clk 0:01:52.7]}
27... Qf4 {[%clk 0:00:09.5]} 28. Qg4 {[%clk 0:01:47.1]} 28... e3 {[%clk
0:00:09.9]} 29. Qxf4 {[%clk 0:01:44.9]} 29... exf4 {[%clk 0:00:10]} 30. fxe3
{[%clk 0:01:44.3]} 30... fxe3 {[%clk 0:00:10.9]} 31. Rxf8+ {[%clk 0:01:44]}
31... Bxf8 {[%clk 0:00:11.8]} 32. Rc8 {[%clk 0:01:40.8]} 32... Kg7 {[%clk
0:00:11.8]} 33. Rc7+ {[%clk 0:01:41.4]} 33... Kh8 {[%clk 0:00:11.2]} 34. Rc8
{[%clk 0:01:40.8]} 34... Kg7 {[%clk 0:00:11.4]} 35. Re8 {[%clk 0:01:39.5]} 35...
Nf5 {[%clk 0:00:10.6]} 36. g4 {[%clk 0:01:37.9]} 36... Ne7 {[%clk 0:00:10.7]}
37. Bf3 {[%clk 0:01:38.2]} 37... d5 {[%clk 0:00:11.1]} 38. Rd8 {[%clk
0:01:38.1]} 38... g5 {[%clk 0:00:04.3]} 39. Kf1 {[%clk 0:01:37.2]} 39... Ng6
{[%clk 0:00:04.3]} 40. Rxd5 {[%clk 0:01:33.8]} 40... Nf4 {[%clk 0:00:03.6]} 41.
Rxg5+ {[%clk 0:01:33.5]} 41... Kh6 {[%clk 0:00:04.2]} 42. Rf5 {[%clk 0:01:33.3]}
42... Bd6 {[%clk 0:00:04.7]} 43. h4 {[%clk 0:01:30.9]} 43... Kg6 {[%clk
0:00:03.8]} 44. Ra5 {[%clk 0:01:25.8]} 44... h6 {[%clk 0:00:01.8]} 45. Ra6
{[%clk 0:01:26]} 1-0

[Event "Late-Titled-Tuesday-Blitz-June-04-2024"]
[Site "Chess.com"]
[Date "2024.06.04"]
[Round "1"]
[White "Oleg_Papayan"]
[Black "carloseduar100"]
[Result "0-1"]
[WhiteElo "2564"]
[BlackElo "2268"]
[TimeControl "180+1"]
[EndTime "14:06:22 PDT"]
[Termination "carloseduar100 won by checkmate"]

1. e4 {[%clk 0:03:00]} 1... e6 {[%clk 0:02:59.5]} 2. d4 {[%clk 0:03:00]} 2... d5
{[%clk 0:02:58.8]} 3. Nc3 {[%clk 0:03:00.6]} 3... Nf6 {[%clk 0:02:59.1]} 4. Bg5
{[%clk 0:03:00]} 4... Be7 {[%clk 0:02:59.2]} 5. e5 {[%clk 0:03:00.3]} 5... Nfd7
{[%clk 0:02:59.3]} 6. Bxe7 {[%clk 0:03:00.9]} 6... Qxe7 {[%clk 0:02:59.6]} 7. f4
{[%clk 0:03:01.8]} 7... a6 {[%clk 0:02:58.7]} 8. Qg4 {[%clk 0:03:01.7]} 8... O-O
{[%clk 0:02:57.9]} 9. Nf3 {[%clk 0:03:02]} 9... f5 {[%clk 0:02:58]} 10. Qg5
{[%clk 0:03:01.6]} 10... Qxg5 {[%clk 0:02:57.8]} 11. Nxg5 {[%clk 0:03:02.5]}
11... Re8 {[%clk 0:02:51.8]} 12. Nxe6 {[%clk 0:02:42.2]} 12... Rxe6 {[%clk
0:02:45.8]} 13. Nxd5 {[%clk 0:02:42.7]} 13... Ra7 {[%clk 0:02:36]} 14. Nxc7
{[%clk 0:02:29.5]} 14... Rc6 {[%clk 0:02:34.9]} 15. Nd5 {[%clk 0:02:19.7]} 15...
Rxc2 {[%clk 0:02:34.7]} 16. Bd3 {[%clk 0:02:18.6]} 16... Rc6 {[%clk 0:02:34.5]}
17. Ne7+ {[%clk 0:02:12.1]} 17... Kf7 {[%clk 0:02:31.2]} 18. Nxc6 {[%clk
0:02:12.1]} 18... Nxc6 {[%clk 0:02:32.1]} 19. Bxf5 {[%clk 0:02:09.8]} 19... Nxd4
{[%clk 0:02:32.2]} 20. Bxd7 {[%clk 0:01:59]} 20... Bxd7 {[%clk 0:02:25.2]} 21.
Rd1 {[%clk 0:01:45.2]} 21... Nc2+ {[%clk 0:02:24.4]} 22. Kf2 {[%clk 0:01:45.1]}
22... Bf5 {[%clk 0:02:25.3]} 23. a3 {[%clk 0:01:33.6]} 23... h5 {[%clk
0:02:21.2]} 24. Rd6 {[%clk 0:01:16.5]} 24... Ra8 {[%clk 0:02:18.5]} 25. Rhd1
{[%clk 0:01:13.9]} 25... Rc8 {[%clk 0:02:18.6]} 26. h3 {[%clk 0:01:12.8]} 26...
h4 {[%clk 0:02:17.4]} 27. Rd8 {[%clk 0:00:59.7]} 27... Rc4 {[%clk 0:02:16.6]}
28. Kf3 {[%clk 0:00:56]} 28... Be4+ {[%clk 0:02:08.1]} 29. Kf2 {[%clk
0:00:50.2]} 29... Bc6 {[%clk 0:02:05.3]} 30. g3 {[%clk 0:00:35.3]} 30... hxg3+
{[%clk 0:02:05]} 31. Kxg3 {[%clk 0:00:36.2]} 31... Ne3 {[%clk 0:02:05]} 32. R1d3
{[%clk 0:00:31.8]} 32... Nf5+ {[%clk 0:02:05]} 33. Kg4 {[%clk 0:00:32.2]} 33...
Nh6+ {[%clk 0:02:00.5]} 34. Kg5 {[%clk 0:00:31.2]} 34... Rc2 {[%clk 0:01:54.3]}
35. Rd2 {[%clk 0:00:22.3]} 35... Rc1 {[%clk 0:01:37.8]} 36. R8d7+ {[%clk
0:00:10.6]} 36... Kg8 {[%clk 0:01:21.1]} 37. Rd8+ {[%clk 0:00:07.2]} 37... Kh7
{[%clk 0:01:20.9]} 38. e6 {[%clk 0:00:04]} 38... Rg1+ {[%clk 0:01:19.8]} 39. Kh4
{[%clk 0:00:02.8]} 39... Nf5+ {[%clk 0:01:18.4]} 40. Kh5 {[%clk 0:00:03.2]}
40... Bf3# {[%clk 0:01:18.8]} 0-1

[Event "Late-Titled-Tuesday-Blitz-June-04-2024"]
[Site "Chess.com"]
[Date "2024.06.04"]
[Round "1"]
[White "manitodeplomo"]
[Black "sammartin99"]
[Result "1-0"]
[WhiteElo "2617"]
[BlackElo "2309"]
[TimeControl "180+1"]
[EndTime "14:06:25 PDT"]
[Termination "manitodeplomo won on time"]

1. d4 {[%clk 0:02:59.4]} 1... d5 {[%clk 0:02:58.4]} 2. c4 {[%clk 0:02:58]} 2...
c6 {[%clk 0:02:58.5]} 3. Nf3 {[%clk 0:02:58.4]} 3... Nf6 {[%clk 0:02:58]} 4. Nc3
{[%clk 0:02:58.4]} 4... a6 {[%clk 0:02:57.7]} 5. Ne5 {[%clk 0:02:56.6]} 5... g6
{[%clk 0:02:47.1]} 6. Qb3 {[%clk 0:02:50.8]} 6... Bg7 {[%clk 0:02:41.2]} 7. Bf4
{[%clk 0:02:49.2]} 7... O-O {[%clk 0:02:35.3]} 8. h3 {[%clk 0:02:44.6]} 8...
Nbd7 {[%clk 0:02:15]} 9. cxd5 {[%clk 0:02:36]} 9... Nxe5 {[%clk 0:02:14.5]} 10.
Bxe5 {[%clk 0:02:25.5]} 10... Nxd5 {[%clk 0:01:50.1]} 11. Bxg7 {[%clk
0:02:23.5]} 11... Kxg7 {[%clk 0:01:51]} 12. e3 {[%clk 0:02:19.2]} 12... Qa5
{[%clk 0:01:43.3]} 13. Bc4 {[%clk 0:02:16.3]} 13... Nxc3 {[%clk 0:01:33.7]} 14.
Qxc3 {[%clk 0:02:01.1]} 14... Qxc3+ {[%clk 0:01:12.6]} 15. bxc3 {[%clk 0:02:02]}
15... b5 {[%clk 0:01:10]} 16. Be2 {[%clk 0:01:55.9]} 16... Be6 {[%clk 0:01:06]}
17. a4 {[%clk 0:01:55.9]} 17... Bb3 {[%clk 0:00:38.4]} 18. Bd1 {[%clk
0:01:41.4]} 18... bxa4 {[%clk 0:00:32.4]} 19. Bxb3 {[%clk 0:01:33.4]} 19... axb3
{[%clk 0:00:33.3]} 20. Kd2 {[%clk 0:01:33.5]} 20... Rfb8 {[%clk 0:00:30.4]} 21.
c4 {[%clk 0:01:19.2]} 21... a5 {[%clk 0:00:28.8]} 22. Ra4 {[%clk 0:01:17.8]}
22... Rb4 {[%clk 0:00:27.3]} 23. Rxb4 {[%clk 0:01:09.1]} 23... axb4 {[%clk
0:00:28.2]} 24. Rb1 {[%clk 0:01:09]} 24... Ra2+ {[%clk 0:00:27.5]} 25. Kd3
{[%clk 0:01:09.4]} 25... Ra3 {[%clk 0:00:21.3]} 26. c5 {[%clk 0:01:05.7]} 26...
Kf6 {[%clk 0:00:20.6]} 27. Kc4 {[%clk 0:01:04.9]} 27... Ra2 {[%clk 0:00:14]} 28.
Rxb3 {[%clk 0:01:01.4]} 28... Rxf2 {[%clk 0:00:13.8]} 29. Rxb4 {[%clk
0:01:01.6]} 29... Rxg2 {[%clk 0:00:07.6]} 30. Rb6 {[%clk 0:01:01.7]} 30... Ke6
{[%clk 0:00:03.2]} 31. Rxc6+ {[%clk 0:00:57.5]} 31... Kd7 {[%clk 0:00:03.7]} 32.
Ra6 {[%clk 0:00:57.3]} 32... Rc2+ {[%clk 0:00:02.5]} 33. Kd5 {[%clk 0:00:56]}
1-0